[Event "Austria Championship Blitz 2024"]
[Site "Innsbruck"]
[Date "2024.06.01"]
[Round "4.5"]
[White "Zanon, Magnus"]
[Black "Kruckenhauser, Arthur"]
[Result "1/2-1/2"]
[ECO "D00"]
[WhiteElo "2092"]
[BlackElo "2340"]
[Annotator "RC"]
[PlyCount "79"]
[EventDate "2024.06.01"]
[EventType "swiss"]
[EventCountry "AUT"]
[SourceTitle "playchess.com"]
[Source "ChessBase"]
[SourceQuality "1"]
[TimeControl "180+2"]

1. d4 {[%emt 0:00:02]} Nf6 {[%emt 0:00:00]} 2. Bg5 {[%emt 0:00:01]} d5 {[%emt 0:00:06]} 3. e3 {[%emt 0:00:01]} Bf5 {[%emt 0:00:16]} 4. Bd3 {[%emt 0:00:03]} Bxd3 {[%emt 0:00:01]} 5. cxd3 {[%emt 0:00:02]} e6 {[%emt 0:00:05]} 6. Nf3 {[%emt 0:00:01]} h6 {[%emt 0:00:01]} 7. Bf4 {[%emt 0:00:02]} Bd6 {[%emt 0:00:07]} 8. Be5 {[%emt 0:00:03]} O-O {[%emt 0:00:17]} 9. O-O {[%emt 0:00:01]} c5 {[%emt 0:00:12]} 10. Bxd6 {[%emt 0:00:05]} Qxd6 {[%emt 0:00:01]} 11. dxc5 {[%emt 0:00:02]} Qxc5 {[%emt 0:00:01]} 12. d4 {[%emt 0:00:01]} Qb6 {[%emt 0:00:03]} 13. Nbd2 {[%emt 0:00:10]} Nc6 {[%emt 0:00:03]} 14. Nb3 {[%emt 0:00:03]} Ne4 {[%emt 0:00:05]} 15. Nfd2 {[%emt 0:00:06]} Nd6 {[%emt 0:00:06]} 16. Nc5 {[%emt 0:00:14]} Qxb2 {[%emt 0:00:09]} 17. a4 {[%emt 0:00:09]} Qb6 {[%emt 0:00:01]} 18. Nd7 {[%emt 0:00:01]} Qc7 {[%emt 0:00:05]} 19. Nxf8 {[%emt 0:00:02]} Rxf8 {[%emt 0:00:01]} 20. Rb1 {[%emt 0:00:02]} a6 {[%emt 0:00:01]} 21. Qb3 {[%emt 0:00:05]} b5 {[%emt 0:00:06]} 22. Rfc1 {[%emt 0:00:05]} Qb6 {[%emt 0:00:02]} 23. axb5 {[%emt 0:00:03]} axb5 {[%emt 0:00:01]} 24. Rc5 {[%emt 0:00:06]} Na5 {[%emt 0:00:05]} 25. Qb4 {[%emt 0:00:10]} Nac4 {[%emt 0:00:09]} 26. Nxc4 {[%emt 0:00:02]} dxc4 {[%emt 0:00:02]} 27. Rxb5 {[%emt 0:00:53]} Qxb5 {[%emt 0:00:06]} 28. Qxb5 {[%emt 0:00:01]} Nxb5 {[%emt 0:00:01]} 29. Rxb5 {[%emt 0:00:01]} Ra8 {[%emt 0:00:22]} 30. g3 {[%emt 0:00:02]} g5 {[%emt 0:00:05]} 31. h3 {[%emt 0:00:12]} Kg7 {[%emt 0:00:02]} 32. Rc5 {[%emt 0:00:09]} Ra4 {[%emt 0:00:01]} 33. Kg2 {[%emt 0:00:04]} f5 {[%emt 0:00:13]} 34. g4 {[%emt 0:00:04]} Kf6 {[%emt 0:00:25]} 35. Kf3 {[%emt 0:00:04]} Rb4 {[%emt 0:00:09]} 36. Rc7 {[%emt 0:00:09]} Kg6 {[%emt 0:00:08]} 37. Rc6 {[%emt 0:00:10]} Kf7 {[%emt 0:00:10]} 38. Rc7+ {[%emt 0:00:04]} Kf6 {[%emt 0:00:01]} 39. Rc6 {[%emt 0:00:05]} Kf7 {[%emt 0:00:04]} 40. Rc7+ {[%emt 0:00:42]} 1/2-1/2

[Event "Austria Championship Blitz 2024"]
[Site "Innsbruck"]
[Date "2024.06.01"]
[Round "4.6"]
[White "Froewis, Annika"]
[Black "Hengl, Philip"]
[Result "0-1"]
[ECO "A47"]
[WhiteElo "2075"]
[BlackElo "2173"]
[Annotator "RC"]
[PlyCount "90"]
[EventDate "2024.06.01"]
[EventType "swiss"]
[EventCountry "AUT"]
[SourceTitle "playchess.com"]
[Source "ChessBase"]
[SourceQuality "1"]
[TimeControl "180+2"]

1. d4 {[%emt 0:00:01]} Nf6 {[%emt 0:00:01]} 2. Bf4 {[%emt 0:00:00]} b6 {[%emt 0:00:03]} 3. e3 {[%emt 0:00:06]} Bb7 {[%emt 0:00:02]} 4. h3 {[%emt 0:00:02]} e6 {[%emt 0:00:02]} 5. Nf3 {[%emt 0:00:02]} Bd6 {[%emt 0:00:01]} 6. Bg5 {[%emt 0:00:11]} O-O {[%emt 0:00:04]} 7. Nbd2 {[%emt 0:00:04]} Be7 {[%emt 0:00:02]} 8. Bd3 {[%emt 0:00:03]} d6 {[%emt 0:00:04]} 9. e4 {[%emt 0:00:09]} Nbd7 {[%emt 0:00:03]} 10. Qe2 {[%emt 0:00:03]} e5 {[%emt 0:00:01]} 11. c3 {[%emt 0:00:07]} Re8 {[%emt 0:00:06]} 12. O-O {[%emt 0:00:07]} h6 {[%emt 0:00:24]} 13. Bh4 {[%emt 0:00:04]} Nh7 {[%emt 0:00:04]} 14. Bxe7 {[%emt 0:00:08]} Qxe7 {[%emt 0:00:01]} 15. d5 {[%emt 0:00:05]} Nc5 {[%emt 0:00:12]} 16. Bc2 {[%emt 0:00:02]} Ba6 {[%emt 0:00:07]} 17. c4 {[%emt 0:00:04]} Bc8 {[%emt 0:00:12]} 18. b4 {[%emt 0:00:06]} Nb7 {[%emt 0:00:03]} 19. a4 {[%emt 0:00:14]} a5 {[%emt 0:00:03]} 20. Rfb1 {[%emt 0:00:16]} Ng5 {[%emt 0:00:13]} 21. Nxg5 {[%emt 0:00:16]} Qxg5 {[%emt 0:00:01]} 22. Ra3 {[%emt 0:00:07]} Bd7 {[%emt 0:00:12]} 23. Rg3 {[%emt 0:00:10]} Qe7 {[%emt 0:00:04]} 24. b5 {[%emt 0:00:19]} Nc5 {[%emt 0:00:01]} 25. Qh5 {[%emt 0:00:09]} Kh7 {[%emt 0:00:07]} 26. Nf3 {[%emt 0:00:11]} g6 {[%emt 0:00:06]} 27. Qh4 {[%emt 0:00:05]} Qxh4 {[%emt 0:00:04]} 28. Nxh4 {[%emt 0:00:01]} Rg8 {[%emt 0:00:16]} 29. Rf1 {[%emt 0:00:09]} g5 {[%emt 0:00:07]} 30. Nf3 {[%emt 0:00:12]} f6 {[%emt 0:00:08]} 31. Nh2 {[%emt 0:00:07]} h5 {[%emt 0:00:03]} 32. Rf3 {[%emt 0:00:03]} Raf8 {[%emt 0:00:04]} 33. g4 {[%emt 0:00:01]} Kg6 {[%emt 0:00:13]} 34. Kg2 {[%emt 0:00:04]} Rh8 {[%emt 0:00:07]} 35. Rg1 {[%emt 0:00:04]} Rf7 {[%emt 0:00:05]} 36. Rg3 {[%emt 0:00:05]} Rfh7 {[%emt 0:00:04]} 37. Rh1 {[%emt 0:00:05]} Kg7 {[%emt 0:00:10]} 38. Rf3 {[%emt 0:00:04]} hxg4 {[%emt 0:00:07]} 39. hxg4 {[%emt 0:00:07]} Bxg4 {[%emt 0:00:13]} 40. Rg3 {[%emt 0:00:01]} Bd7 {[%emt 0:00:04]} 41. Kg1 {[%emt 0:00:06]} Be8 {[%emt 0:00:01]} 42. Rg2 {[%emt 0:00:02]} Bg6 {[%emt 0:00:02]} 43. f3 {[%emt 0:00:02]} Rh3 {[%emt 0:00:03]} 44. Kf2 {[%emt 0:00:01]} Kf7 {[%emt 0:00:04]} 45. Rhg1 {[%emt 0:00:01]} Rxh2 {[%emt 0:00:02]} 0-1

[Event "Austria Championship Blitz 2024"]
[Site "Innsbruck"]
[Date "2024.06.01"]
[Round "4.7"]
[White "Kummer, Helmut"]
[Black "Horvath, Dominik"]
[Result "0-1"]
[ECO "D51"]
[WhiteElo "2212"]
[BlackElo "2554"]
[Annotator "RC"]
[PlyCount "84"]
[EventDate "2024.06.01"]
[EventType "swiss"]
[EventCountry "AUT"]
[SourceTitle "playchess.com"]
[Source "ChessBase"]
[SourceQuality "1"]
[TimeControl "180+2"]

1. d4 {[%emt 0:00:01]} Nf6 {[%emt 0:00:00]} 2. c4 {[%emt 0:00:01]} e6 {[%emt 0:00:01]} 3. Nf3 {[%emt 0:00:02]} d5 {[%emt 0:00:01]} 4. Nc3 {[%emt 0:00:01]} Nbd7 {[%emt 0:00:01]} 5. Bg5 {[%emt 0:00:12]} h6 {[%emt 0:00:03]} 6. Bh4 {[%emt 0:00:13]} dxc4 {[%emt 0:00:01]} 7. e4 {[%emt 0:00:06]} b5 {[%emt 0:00:01]} 8. e5 {[%emt 0:00:43]} g5 {[%emt 0:00:03]} 9. exf6 {[%emt 0:00:26]} gxh4 {[%emt 0:00:02]} 10. Nxb5 {[%emt 0:00:01]} Nb6 {[%emt 0:00:33]} 11. g3 {[%emt 0:00:17]} Bb7 {[%emt 0:00:13]} 12. Bg2 {[%emt 0:00:01]} Bb4+ {[%emt 0:00:21]} 13. Nc3 {[%emt 0:00:02]} hxg3 {[%emt 0:00:11]} 14. hxg3 {[%emt 0:00:07]} Qxf6 {[%emt 0:00:03]} 15. O-O {[%emt 0:00:24]} O-O-O {[%emt 0:00:04]} 16. Qe2 {[%emt 0:00:17]} h5 {[%emt 0:00:19]} 17. Ne4 {[%emt 0:00:15]} Qe7 {[%emt 0:00:19]} 18. Nc5 {[%emt 0:00:04]} Bxc5 {[%emt 0:00:04]} 19. dxc5 {[%emt 0:00:01]} Qxc5 {[%emt 0:00:01]} 20. Rad1 {[%emt 0:00:10]} Rdg8 {[%emt 0:00:14]} 21. Qe5 {[%emt 0:00:06]} Qxe5 {[%emt 0:00:30]} 22. Nxe5 {[%emt 0:00:02]} Bxg2 {[%emt 0:00:05]} 23. Kxg2 {[%emt 0:00:01]} f6 {[%emt 0:00:01]} 24. Nc6 {[%emt 0:00:05]} Kb7 {[%emt 0:00:02]} 25. Nd4 {[%emt 0:00:03]} e5 {[%emt 0:00:03]} 26. Nf5 {[%emt 0:00:01]} Rg5 {[%emt 0:00:04]} 27. Nh4 {[%emt 0:00:03]} Kc6 {[%emt 0:00:05]} 28. Rc1 {[%emt 0:00:02]} Kb5 {[%emt 0:00:02]} 29. b3 {[%emt 0:00:02]} cxb3 {[%emt 0:00:03]} 30. axb3 {[%emt 0:00:01]} c5 {[%emt 0:00:00]} 31. Rfd1 {[%emt 0:00:05]} Rc8 {[%emt 0:00:07]} 32. Nf3 {[%emt 0:00:02]} Rg4 {[%emt 0:00:01]} 33. Ne1 {[%emt 0:00:03]} Rd4 {[%emt 0:00:02]} 34. Nd3 {[%emt 0:00:03]} c4 {[%emt 0:00:01]} 35. bxc4+ {[%emt 0:00:01]} Rcxc4 {[%emt 0:00:05]} 36. Rb1+ {[%emt 0:00:00]} Kc6 {[%emt 0:00:01]} 37. Ne1 {[%emt 0:00:06]} Rxd1 {[%emt 0:00:02]} 38. Rxd1 {[%emt 0:00:01]} a5 {[%emt 0:00:01]} 39. Ra1 {[%emt 0:00:02]} a4 {[%emt 0:00:01]} 40. Nd3 {[%emt 0:00:01]} Rd4 {[%emt 0:00:03]} 41. Nb2 {[%emt 0:00:01]} Kb5 {[%emt 0:00:01]} 42. Rb1 {[%emt 0:00:01]} Rb4 {[%emt 0:00:04]} 0-1

[Event "Austria Championship Blitz 2024"]
[Site "Innsbruck"]
[Date "2024.06.01"]
[Round "4.8"]
[White "Teuschler, Barbara"]
[Black "Wohlfahrt, Herbert"]
[Result "1/2-1/2"]
[ECO "B12"]
[WhiteElo "2040"]
[BlackElo "2328"]
[Annotator "RC"]
[PlyCount "100"]
[EventDate "2024.06.01"]
[EventType "swiss"]
[EventCountry "AUT"]
[SourceTitle "playchess.com"]
[Source "ChessBase"]
[SourceQuality "1"]
[TimeControl "180+2"]

1. e4 {[%emt 0:00:02]} c6 {[%emt 0:00:04]} 2. d4 {[%emt 0:00:01]} d5 {[%emt 0:00:00]} 3. e5 {[%emt 0:00:07]} Bf5 {[%emt 0:00:03]} 4. h4 {[%emt 0:00:01]} h6 {[%emt 0:00:01]} 5. Be3 {[%emt 0:00:02]} e6 {[%emt 0:00:22]} 6. g4 {[%emt 0:00:16]} Be4 {[%emt 0:00:06]} 7. f3 {[%emt 0:00:02]} Bh7 {[%emt 0:00:02]} 8. Bd3 {[%emt 0:00:25]} Bxd3 {[%emt 0:02:40]} 9. Qxd3 {[%emt 0:00:01]} h5 {[%emt 0:00:00]} 10. g5 {[%emt 0:00:16]} Ne7 {[%emt 0:00:00]} 11. Ne2 {[%emt 0:00:03]} Nf5 {[%emt 0:00:00]} 12. Bf2 {[%emt 0:00:04]} Qb6 {[%emt 0:00:00]} 13. Nbc3 {[%emt 0:00:08]} Bb4 {[%emt 0:00:00]} 14. a3 {[%emt 0:00:13]} Bxc3+ {[%emt 0:00:00]} 15. Qxc3 {[%emt 0:00:35]} g6 {[%emt 0:00:00]} 16. O-O-O {[%emt 0:00:29]} Nd7 {[%emt 0:00:00]} 17. Ng3 {[%emt 0:00:01]} Nxg3 {[%emt 0:00:00]} 18. Bxg3 {[%emt 0:00:01]} O-O-O {[%emt 0:00:00]} 19. Kb1 {[%emt 0:00:01]} Kb8 {[%emt 0:00:00]} 20. Be1 {[%emt 0:00:01]} Rc8 {[%emt 0:00:00]} 21. Qd3 {[%emt 0:00:02]} c5 {[%emt 0:00:00]} 22. dxc5 {[%emt 0:00:04]} Nxc5 {[%emt 0:00:00]} 23. Qd4 {[%emt 0:00:09]} Nd7 {[%emt 0:00:00]} 24. Bb4 {[%emt 0:00:02]} Qxd4 {[%emt 0:00:00]} 25. Rxd4 {[%emt 0:00:01]} b6 {[%emt 0:00:00]} 26. Rf4 {[%emt 0:00:07]} Rh7 {[%emt 0:00:00]} 27. Rd1 {[%emt 0:00:01]} Kb7 {[%emt 0:00:00]} 28. Bd6 {[%emt 0:00:01]} Rc4 {[%emt 0:00:00]} 29. Rxc4 dxc4 {[%emt 0:00:00]} 30. Rd4 {[%emt 0:00:22]} b5 {[%emt 0:00:00]} 31. a4 {[%emt 0:00:01]} a6 {[%emt 0:00:00]} 32. axb5 {[%emt 0:00:00]} axb5 {[%emt 0:00:00]} 33. b3 {[%emt 0:00:01]} cxb3 {[%emt 0:00:03]} 34. cxb3 {[%emt 0:00:01]} Nb6 {[%emt 0:00:01]} 35. Rd1 {[%emt 0:00:11]} Nd5 {[%emt 0:00:02]} 36. Kb2 {[%emt 0:00:04]} Rh8 {[%emt 0:00:01]} 37. Rc1 {[%emt 0:00:06]} Rc8 {[%emt 0:00:03]} 38. Ra1 {[%emt 0:00:00]} Rc3 {[%emt 0:00:05]} 39. Ra5 {[%emt 0:00:05]} Kb6 {[%emt 0:00:08]} 40. Ra8 {[%emt 0:00:04]} Rxf3 {[%emt 0:00:03]} 41. Rb8+ {[%emt 0:00:01]} Ka6 {[%emt 0:00:02]} 42. Ra8+ {[%emt 0:00:01]} Kb7 {[%emt 0:00:00]} 43. Rb8+ {[%emt 0:00:03]} Kc6 {[%emt 0:00:01]} 44. Rc8+ {[%emt 0:00:01]} Kd7 {[%emt 0:00:01]} 45. Rb8 {[%emt 0:00:03]} Rf2+ {[%emt 0:00:21]} 46. Kc1 {[%emt 0:00:06]} Nc3 {[%emt 0:00:09]} 47. Rb7+ {[%emt 0:00:03]} Kd8 {[%emt 0:00:04]} 48. Rb8+ {[%emt 0:00:01]} Kd7 {[%emt 0:00:01]} 49. Rb7+ {[%emt 0:00:00]} Ke8 {[%emt 0:00:03]} 50. Rb8+ {[%emt 0:00:02]} Kd7 {[%emt 0:00:01]} 1/2-1/2

[Event "Austria Championship Blitz 2024"]
[Site "Innsbruck"]
[Date "2024.06.01"]
[Round "4.9"]
[White "Kranzl, Peter"]
[Black "Erhard, Jakob"]
[Result "1-0"]
[ECO "B18"]
[WhiteElo "2157"]
[BlackElo "2057"]
[Annotator "RC"]
[PlyCount "47"]
[EventDate "2024.06.01"]
[EventType "swiss"]
[EventCountry "AUT"]
[SourceTitle "playchess.com"]
[Source "ChessBase"]
[SourceQuality "1"]
[TimeControl "180+2"]

1. e4 {[%emt 0:00:02]} c6 {[%emt 0:00:00]} 2. d4 {[%emt 0:00:02]} d5 {[%emt 0:00:01]} 3. Nc3 {[%emt 0:00:01]} dxe4 {[%emt 0:00:02]} 4. Nxe4 {[%emt 0:00:01]} Bf5 {[%emt 0:00:01]} 5. Nc5 {[%emt 0:00:02]} b6 {[%emt 0:00:03]} 6. Nb3 {[%emt 0:00:03]} Nf6 {[%emt 0:00:01]} 7. Nf3 {[%emt 0:00:02]} e6 {[%emt 0:00:02]} 8. Bd3 {[%emt 0:00:02]} Bxd3 {[%emt 0:00:01]} 9. Qxd3 {[%emt 0:00:01]} Bd6 {[%emt 0:00:01]} 10. O-O {[%emt 0:00:03]} O-O {[%emt 0:00:02]} 11. c4 {[%emt 0:00:03]} Nbd7 {[%emt 0:00:05]} 12. Bg5 {[%emt 0:00:03]} h6 {[%emt 0:00:02]} 13. Bh4 {[%emt 0:00:01]} Qc7 {[%emt 0:00:05]} 14. Rac1 {[%emt 0:00:05]} c5 {[%emt 0:00:04]} 15. Rfd1 {[%emt 0:00:14]} Rad8 {[%emt 0:00:06]} 16. Qe2 {[%emt 0:00:15]} Be7 {[%emt 0:00:02]} 17. Bg3 {[%emt 0:00:02]} Qb7 {[%emt 0:00:03]} 18. d5 {[%emt 0:00:03]} Rfe8 {[%emt 0:00:33]} 19. dxe6 {[%emt 0:00:02]} fxe6 {[%emt 0:00:14]} 20. Qxe6+ {[%emt 0:00:02]} Kh8 {[%emt 0:00:07]} 21. Re1 {[%emt 0:00:19]} Nh5 {[%emt 0:00:29]} 22. Qf7 {[%emt 0:00:21]} Ndf6 {[%emt 0:00:59]} 23. Ne5 {[%emt 0:00:07]} Bf8 {[%emt 0:00:12]} 24. Qxb7 {[%emt 0:00:06]} 1-0

[Event "Austria Championship Blitz 2024"]
[Site "Innsbruck"]
[Date "2024.06.01"]
[Round "4.10"]
[White "Cafasso, Elia"]
[Black "Schnegg, Daniel"]
[Result "1-0"]
[ECO "B06"]
[WhiteElo "2178"]
[BlackElo "2115"]
[Annotator "RC"]
[PlyCount "89"]
[EventDate "2024.06.01"]
[EventType "swiss"]
[EventCountry "AUT"]
[SourceTitle "playchess.com"]
[Source "ChessBase"]
[SourceQuality "1"]
[TimeControl "180+2"]

1. e4 {[%emt 0:00:01]} d6 {[%emt 0:00:01]} 2. d4 {[%emt 0:00:01]} g6 {[%emt 0:00:01]} 3. Nf3 {[%emt 0:00:01]} Bg7 {[%emt 0:00:01]} 4. Nc3 {[%emt 0:00:01]} e6 {[%emt 0:00:01]} 5. Bd3 {[%emt 0:00:03]} Ne7 {[%emt 0:00:02]} 6. O-O {[%emt 0:00:02]} O-O {[%emt 0:00:01]} 7. Re1 {[%emt 0:00:01]} b6 {[%emt 0:00:03]} 8. Bf4 {[%emt 0:00:05]} h6 {[%emt 0:00:03]} 9. Bg3 {[%emt 0:00:01]} Bb7 {[%emt 0:00:02]} 10. Qd2 {[%emt 0:00:02]} c5 {[%emt 0:00:08]} 11. dxc5 {[%emt 0:00:07]} dxc5 {[%emt 0:00:13]} 12. Rad1 {[%emt 0:00:01]} Nbc6 {[%emt 0:00:03]} 13. h3 {[%emt 0:00:11]} Nd4 {[%emt 0:00:14]} 14. Nxd4 {[%emt 0:00:06]} Qxd4 {[%emt 0:00:09]} 15. Nb5 {[%emt 0:00:23]} Qxb2 {[%emt 0:00:10]} 16. Bd6 {[%emt 0:00:01]} Rfe8 {[%emt 0:00:39]} 17. Nc7 {[%emt 0:00:07]} Nc6 {[%emt 0:00:06]} 18. Nxa8 {[%emt 0:00:11]} Rxa8 {[%emt 0:00:03]} 19. Rb1 {[%emt 0:00:12]} Qxa2 {[%emt 0:00:07]} 20. Bxc5 {[%emt 0:00:01]} Rd8 {[%emt 0:00:15]} 21. Be3 {[%emt 0:00:03]} Ba6 {[%emt 0:00:06]} 22. Bxh6 {[%emt 0:00:09]} Bxh6 {[%emt 0:00:14]} 23. Qxh6 {[%emt 0:00:04]} Bxd3 {[%emt 0:00:01]} 24. cxd3 {[%emt 0:00:02]} Rxd3 {[%emt 0:00:01]} 25. Rbc1 {[%emt 0:00:04]} Qa4 {[%emt 0:00:06]} 26. Qf4 {[%emt 0:00:17]} Kg7 {[%emt 0:00:12]} 27. Qc7 {[%emt 0:00:02]} Nd4 {[%emt 0:00:04]} 28. Rc4 {[%emt 0:00:12]} Qa5 {[%emt 0:00:04]} 29. Rf1 {[%emt 0:00:10]} a6 {[%emt 0:00:14]} 30. Kh1 {[%emt 0:00:11]} Rd2 {[%emt 0:00:02]} 31. Rc3 {[%emt 0:00:07]} Qb5 {[%emt 0:00:06]} 32. Qc4 {[%emt 0:00:04]} Qg5 {[%emt 0:00:03]} 33. Rd3 {[%emt 0:00:07]} Rxd3 {[%emt 0:00:07]} 34. Qxd3 {[%emt 0:00:02]} Qc5 {[%emt 0:00:01]} 35. Qxa6 {[%emt 0:00:03]} b5 {[%emt 0:00:02]} 36. Qa1 {[%emt 0:00:03]} e5 {[%emt 0:00:00]} 37. f4 {[%emt 0:00:01]} f6 {[%emt 0:00:02]} 38. fxe5 {[%emt 0:00:02]} fxe5 {[%emt 0:00:01]} 39. Qa2 {[%emt 0:00:02]} b4 {[%emt 0:00:09]} 40. Qf7+ {[%emt 0:00:03]} Kh6 {[%emt 0:00:01]} 41. Rf6 {[%emt 0:00:14]} Qc1+ {[%emt 0:00:26]} 42. Kh2 Qg5 {[%emt 0:00:00]} 43. Qf8+ {[%emt 0:00:02]} Kh5 {[%emt 0:00:00]} 44. g4+ {[%emt 0:00:06]} Kh4 {[%emt 0:00:00]} 45. Qh8+ {[%emt 0:00:01]} 1-0

[Event "Austria Championship Blitz 2024"]
[Site "Innsbruck"]
[Date "2024.06.01"]
[Round "4.11"]
[White "Binder, Moriz"]
[Black "Polterauer, Chiara"]
[Result "1-0"]
[ECO "D02"]
[WhiteElo "2210"]
[BlackElo "2136"]
[Annotator "RC"]
[PlyCount "77"]
[EventDate "2024.06.01"]
[EventType "swiss"]
[EventCountry "AUT"]
[SourceTitle "playchess.com"]
[Source "ChessBase"]
[SourceQuality "1"]
[TimeControl "180+2"]

1. d4 {[%emt 0:00:02]} Nf6 {[%emt 0:00:00]} 2. Nf3 {[%emt 0:00:01]} g6 {[%emt 0:00:02]} 3. Nbd2 {[%emt 0:00:01]} d5 {[%emt 0:00:02]} 4. b4 {[%emt 0:00:01]} a5 {[%emt 0:00:03]} 5. b5 {[%emt 0:00:01]} c6 {[%emt 0:00:03]} 6. e3 {[%emt 0:00:13]} Bg7 {[%emt 0:00:03]} 7. Bb2 {[%emt 0:00:02]} O-O {[%emt 0:00:02]} 8. c4 {[%emt 0:00:02]} cxb5 {[%emt 0:00:08]} 9. cxd5 {[%emt 0:00:02]} Qxd5 {[%emt 0:00:07]} 10. Bd3 {[%emt 0:00:06]} Bf5 {[%emt 0:00:09]} 11. Qe2 {[%emt 0:00:25]} Ne4 {[%emt 0:00:25]} 12. Nxe4 {[%emt 0:00:33]} Bxe4 {[%emt 0:00:01]} 13. Bxe4 {[%emt 0:00:03]} Qxe4 {[%emt 0:00:01]} 14. Qxb5 {[%emt 0:00:01]} Nc6 {[%emt 0:00:41]} 15. O-O {[%emt 0:00:04]} Nb4 {[%emt 0:00:09]} 16. Rfc1 {[%emt 0:00:58]} Nd3 {[%emt 0:00:13]} 17. Ng5 {[%emt 0:00:32]} Qf5 {[%emt 0:00:11]} 18. Qxf5 {[%emt 0:00:09]} gxf5 {[%emt 0:00:01]} 19. Rc2 {[%emt 0:00:02]} Nxb2 20. Rxb2 {[%emt 0:00:01]} Rfb8 {[%emt 0:00:14]} 21. Rab1 {[%emt 0:00:01]} Ra7 {[%emt 0:00:05]} 22. Rb5 {[%emt 0:00:03]} f4 {[%emt 0:00:02]} 23. Ne4 {[%emt 0:00:06]} fxe3 {[%emt 0:00:01]} 24. fxe3 {[%emt 0:00:01]} e5 {[%emt 0:00:18]} 25. dxe5 {[%emt 0:00:04]} Re8 {[%emt 0:00:01]} 26. Rxb7 {[%emt 0:00:11]} Rxb7 {[%emt 0:00:01]} 27. Rxb7 {[%emt 0:00:01]} Bxe5 {[%emt 0:00:08]} 28. Ng5 {[%emt 0:00:02]} f6 {[%emt 0:00:18]} 29. Nf3 {[%emt 0:00:00]} Bc3 {[%emt 0:00:03]} 30. Kf2 {[%emt 0:00:02]} Bb4 {[%emt 0:00:07]} 31. Nd4 {[%emt 0:00:02]} Re5 {[%emt 0:00:08]} 32. Kf3 {[%emt 0:00:02]} Bd2 {[%emt 0:00:02]} 33. Rb3 {[%emt 0:00:03]} Bb4 {[%emt 0:00:04]} 34. Rd3 {[%emt 0:00:01]} Kf7 {[%emt 0:00:02]} 35. e4 {[%emt 0:00:01]} Bc5 {[%emt 0:00:02]} 36. Nf5 {[%emt 0:00:01]} Bb4 {[%emt 0:00:02]} 37. Rd7+ {[%emt 0:00:01]} Ke6 {[%emt 0:00:05]} 38. Rxh7 {[%emt 0:00:01]} Rc5 {[%emt 0:00:02]} 39. Re7# {[%emt 0:00:18]} 1-0

[Event "Austria Championship Blitz 2024"]
[Site "Innsbruck"]
[Date "2024.06.01"]
[Round "4.12"]
[White "Myagmarsuren, Mandukhai"]
[Black "Blaas, Hansjoerg"]
[Result "1-0"]
[ECO "D08"]
[WhiteElo "2092"]
[BlackElo "2222"]
[Annotator "RC"]
[PlyCount "74"]
[EventDate "2024.06.01"]
[EventType "swiss"]
[EventCountry "AUT"]
[SourceTitle "playchess.com"]
[Source "ChessBase"]
[SourceQuality "1"]
[TimeControl "180+2"]

1. d4 {[%emt 0:00:02]} d5 {[%emt 0:00:00]} 2. c4 {[%emt 0:00:02]} e5 {[%emt 0:00:01]} 3. dxe5 {[%emt 0:00:02]} d4 {[%emt 0:00:00]} 4. a3 {[%emt 0:00:02]} Nc6 {[%emt 0:00:03]} 5. Nf3 {[%emt 0:00:01]} Bg4 {[%emt 0:00:01]} 6. Nbd2 {[%emt 0:00:04]} a5 {[%emt 0:00:10]} 7. g3 {[%emt 0:00:04]} Nge7 {[%emt 0:00:01]} 8. Bg2 {[%emt 0:00:01]} Ng6 {[%emt 0:00:02]} 9. O-O {[%emt 0:00:13]} Bc5 {[%emt 0:00:07]} 10. Nb3 {[%emt 0:00:02]} Ba7 {[%emt 0:00:02]} 11. Bg5 {[%emt 0:00:04]} Qd7 {[%emt 0:00:04]} 12. e6 {[%emt 0:00:25]} Bxe6 {[%emt 0:00:08]} 13. Qc2 {[%emt 0:00:20]} h6 {[%emt 0:00:15]} 14. Bd2 {[%emt 0:00:11]} a4 {[%emt 0:00:01]} 15. Nc1 {[%emt 0:00:20]} O-O {[%emt 0:00:14]} 16. c5 {[%emt 0:00:08]} Qe7 {[%emt 0:00:30]} 17. Nd3 {[%emt 0:00:05]} Bb3 {[%emt 0:00:04]} 18. Qc1 {[%emt 0:00:10]} Qxe2 {[%emt 0:00:04]} 19. Nb4 {[%emt 0:00:35]} Nxb4 {[%emt 0:00:31]} 20. axb4 {[%emt 0:00:05]} Rad8 {[%emt 0:00:07]} 21. Re1 {[%emt 0:00:03]} Qd3 {[%emt 0:00:11]} 22. Bf4 {[%emt 0:00:16]} Bb8 {[%emt 0:00:17]} 23. Ne5 {[%emt 0:00:05]} Nxe5 {[%emt 0:00:05]} 24. Bxe5 {[%emt 0:00:02]} c6 {[%emt 0:00:16]} 25. Bxb8 {[%emt 0:00:02]} Rxb8 {[%emt 0:00:00]} 26. Be4 {[%emt 0:00:02]} Qb5 {[%emt 0:00:09]} 27. Qf4 {[%emt 0:00:02]} Be6 {[%emt 0:00:21]} 28. Bc2 {[%emt 0:00:02]} Qxb4 {[%emt 0:00:06]} 29. Qe4 {[%emt 0:00:01]} g6 {[%emt 0:00:01]} 30. Rxa4 {[%emt 0:00:03]} Qxc5 {[%emt 0:00:03]} 31. b4 {[%emt 0:00:15]} Qd5 {[%emt 0:00:02]} 32. Qh4 {[%emt 0:00:02]} Kg7 {[%emt 0:00:01]} 33. Ra5 {[%emt 0:00:02]} b5 {[%emt 0:00:02]} 34. Ra7 {[%emt 0:00:02]} Rbd8 {[%emt 0:00:11]} 35. Re7 {[%emt 0:00:02]} Bf5 {[%emt 0:00:02]} 36. Bxf5 {[%emt 0:00:17]} Qxf5 37. R1e5 {[%emt 0:00:02]} Qf6 1-0

[Event "Austria Championship Blitz 2024"]
[Site "Innsbruck"]
[Date "2024.06.01"]
[Round "4.13"]
[White "Casagrande, Harald"]
[Black "Horvath, Reka"]
[Result "0-1"]
[ECO "A22"]
[WhiteElo "2290"]
[BlackElo "2009"]
[Annotator "RC"]
[PlyCount "56"]
[EventDate "2024.06.01"]
[EventType "swiss"]
[EventCountry "AUT"]
[SourceTitle "playchess.com"]
[Source "ChessBase"]
[SourceQuality "1"]
[TimeControl "180+2"]

1. c4 {[%emt 0:00:01]} e5 {[%emt 0:00:02]} 2. Nc3 {[%emt 0:00:03]} Nf6 {[%emt 0:00:02]} 3. g3 {[%emt 0:00:00]} d5 {[%emt 0:00:00]} 4. cxd5 Nxd5 {[%emt 0:00:01]} 5. Bg2 {[%emt 0:00:02]} Nb6 {[%emt 0:00:01]} 6. d3 {[%emt 0:00:08]} Be7 {[%emt 0:00:09]} 7. a3 {[%emt 0:00:08]} O-O {[%emt 0:00:03]} 8. Nf3 {[%emt 0:00:05]} Nc6 {[%emt 0:00:01]} 9. b4 {[%emt 0:00:01]} a5 {[%emt 0:00:18]} 10. b5 {[%emt 0:00:05]} Nd4 {[%emt 0:00:01]} 11. Nxe5 {[%emt 0:00:29]} Bf6 {[%emt 0:00:01]} 12. f4 {[%emt 0:00:02]} Re8 {[%emt 0:00:31]} 13. e3 {[%emt 0:00:02]} Bxe5 {[%emt 0:00:06]} 14. fxe5 {[%emt 0:00:03]} Rxe5 {[%emt 0:00:07]} 15. O-O {[%emt 0:00:11]} Nf5 {[%emt 0:00:11]} 16. d4 {[%emt 0:00:49]} Nxe3 {[%emt 0:00:35]} 17. Qf3 {[%emt 0:00:01]} Nxf1 {[%emt 0:00:08]} 18. dxe5 {[%emt 0:00:02]} Nd2 {[%emt 0:00:16]} 19. Bxd2 Qxd2 {[%emt 0:00:02]} 20. Rd1 {[%emt 0:00:02]} Qg5 {[%emt 0:00:01]} 21. Qf4 {[%emt 0:00:41]} Qe7 {[%emt 0:00:07]} 22. Qd4 {[%emt 0:00:07]} Be6 {[%emt 0:00:09]} 23. Bxb7 {[%emt 0:00:02]} Rb8 {[%emt 0:00:04]} 24. Be4 {[%emt 0:00:15]} g6 {[%emt 0:00:07]} 25. a4 {[%emt 0:00:01]} Nc4 {[%emt 0:00:05]} 26. Nd5 {[%emt 0:00:04]} Bxd5 {[%emt 0:00:11]} 27. Bxd5 {[%emt 0:00:02]} Nxe5 {[%emt 0:00:08]} 28. Bb3 {[%emt 0:00:17]} Nf3+ {[%emt 0:00:02]} 0-1